Cogmind - Beta 16.1 @@@ ROGUE MODE // 2026.02.15 @ 23:48:44 Player: Megaknight51 Result: Destroyed self with Grenade Launcher Performance ------------- Evolutions (0) 0 Regions Visited (2) 400 Robots Destroyed (31) 155 Value Destroyed (503) 503 Prototype IDs (0) 0 Alien Tech Used (0) 0 Bonus (0) 0 TOTAL SCORE: 1058 Bonus ------- None Cogmind --------- Core Integrity 0/250 Matter 280/300 Energy 85/100 System Corruption 0% Temperature Cool (36) Movement Rolling (200) Ox8 Location -10/Mines Parts ------- > --- POWER (1) -------- (None) > --- PROPULSION (2) --- Wheel > --- UTILITY (2) ------ Huge Storage Unit > --- WEAPON (2) ------- Particle Cannon Grenade Launcher > --- INVENTORY (25) --- Light Ion Engine Wheel Small Storage Unit Visual Processing Unit Signal Interpreter Improved Terrain Scanner Improved Terrain Scanner Assault Rifle Peak State ------------ > --- POWER ------------ Light Nuclear Core > --- PROPULSION ------- Wheel Wheel > --- UTILITY ---------- Small Storage Unit Huge Storage Unit > --- WEAPON ----------- Particle Cannon Assault Rifle > --- INVENTORY -------- Light Ion Engine Wheel Wheel Visual Processing Unit Signal Interpreter Improved Terrain Scanner Improved Terrain Scanner Grenade Launcher [Rating: 11] Favorites ----------- Power Ion Engine Engine Ion Engine Power Core Light Nuclear Core Propulsion Wheel Wheel Wheel Utility Small Storage Unit Storage Small Storage Unit Weapon Assault Rifle Energy Gun EM Pulse Gun Energy Cannon Particle Cannon Ballistic Gun Assault Rifle Launcher Grenade Launcher Build | -11 -10 -10 ------- Run | Yrd Mat Min Slots Evolved . | . . . Power . | . . . Propulsion . | . . . Utility . | . . . Weapon . | . . . Parts Attached 15 | 7 7 1 Power 4 | 2 2 . Engine 3 | 2 1 . Core 1 | . 1 . Reactor . | . . . Propulsion 3 | 2 1 . Treads . | . . . Leg . | . . . Wheel 3 | 2 1 . Hover . | . . . Flight . | . . . Utility 2 | 1 1 . Device . | . . . Storage 2 | 1 1 . Processor . | . . . Hackware . | . . . Protection . | . . . Artifact . | . . . Weapon 6 | 2 3 1 Energy Gun 2 | . 2 . Energy Cannon 1 | . 1 . Ballistic Gun 2 | 2 . . Ballistic Cannon . | . . . Launcher 1 | . . 1 Special Weapon . | . . . Impact Weapon . | . . . Slashing Weapon . | . . . Piercing Weapon . | . . . Special Melee Weapon . | . . . Unidentified Prototypes . | . . . Parts Lost 5 | . 3 2 Power 2 | . 1 1 Propulsion 1 | . . 1 Utility . | . . . Weapon 2 | . 2 . Highest Loss Streak 2 | . 1 2 To Critical Strikes . | . . . Average Backups 6 | 3 7 8 Power 1 | . 1 1 Propulsion 1 | 1 1 1 Utility 2 | 1 3 5 Weapon . | . 1 1 Tool/Special . | . . . Unused Backups 6 | . 1 5 Power . | . . . Propulsion 2 | . 1 1 Utility 4 | . . 4 Weapon . | . . . Tool/Special . | . . . Average Slot Usage (%) 82 | . 83 78 Engine 7 | . 7 . Core 5 | . 5 7 Wheel 28 | . 28 28 Storage 14 | . 14 14 Energy Gun 7 | . 7 . Energy Cannon 4 | . 4 14 Ballistic Gun 14 | . 15 . Peak Build Rating 11 | 6 11 10 Average Rating 7 | 5 7 8 On Entrance 5 | . 6 10 Avg Prop Armor Cover (%) . | . . . Naked Turns . | . . . Heaviest Build 91 | 13 91 . Greatest Support 20 | 20 20 . Greatest Overweight (x) 4 | . 4 . Average Overweight (x) . | . . . Largest Inventory Capacity 25 | 8 25 25 Average Capacity 10 | 7 12 25 Most Carried 9 | 5 9 8 Average Carried 6 | 3 7 8 Final Capacity 25 | 8 25 25 Final Carried 8 | 5 8 8 Class Distribution -------------------- 100% | Mutant Dominant Class ---------------- Mutant | -10/Materials Mutant | -10/Mines Resources | -11 -10 -10 ----------- Run | Yrd Mat Min Matter Collected 638 | 430 208 . Remotely . | . . . Salvage Created 907 | 235 672 . Parts 52 | 11 41 . Haulers Intercepted 1 | . 1 . Recyclers Shooed . | . . . Parts Field Recycled . | . . . Retrieved Matter . | . . . Parts Self-Destructed . | . . . Prevented . | . . . Parts Restored . | . . . Kills | -11 -10 -10 ------- Run | Yrd Mat Min Combat Hostiles Destroyed 13 | . 13 . Guns 9 | . 9 . AOE 4 | . 4 . Classes Destroyed 9 | 2 7 . Worker 1 | . 1 . Builder 1 | . 1 . Tunneler 10 | 8 2 . Hauler 1 | . 1 . Recycler 3 | 1 2 . Operator 1 | . 1 . Watcher 1 | . 1 . Swarmer 5 | . 5 . Grunt 8 | . 8 . Best Kill Streak 9 | 3 9 . Combat Bots Only 8 | . 8 . Max Kills in Single Turn 2 | 1 2 . Gunslinging . | . . . Exploded 2 | . 2 . Melee . | . . . Uniques/NPCs Destroyed . | . . . Combat | -11 -10 -10 -------- Run | Yrd Mat Min Hostile Shots Fired 51 | . 48 3 Missed 17 | . 16 1 Hits 34 | . 32 2 Projectile 34 | . 32 2 Damage Taken 643 | . 546 97 Core 250 | . 212 38 Absorbed by Shields . | . . . Core Remaining (%) 100 | 100 . . Volleys Fired 101 | 40 59 2 Largest 2 | 2 2 2 Hottest 98 | 40 88 98 Shots Fired 192 | 80 108 4 Gun 175 | 80 95 . Cannon 15 | . 13 2 Launcher 2 | . . 2 Special . | . . . Kinetic 130 | 80 50 . Thermal 15 | . 13 2 Explosive 2 | . . 2 Electromagnetic 45 | . 45 . Robot Hit Streak 9 | 9 8 5 Robot Miss Streak 7 | 2 7 . Penetration Max . | . . . Secondary Targets 1 | . 1 . Max Gunslinging Chain 1 | . 1 . Shots Hit Robots 121 | 49 68 4 Core Hits 44 | 15 29 . Critical Kills . | . . . Critical Parts Destroyed 2 | 1 1 . Critical Strikes 3 | 1 2 . Destroy 2 | 1 1 . Corrupt 1 | . 1 . Melee Attacks . | . . . Impact . | . . . Slashing . | . . . Piercing . | . . . Sneak Attacks . | . . . Combat Hostiles . | . . . Follow-up Attacks . | . . . Damage Inflicted 1903 | 533 1165 205 Guns 1262 | 533 729 . Cannons 208 | . 167 41 Explosions 414 | . 250 164 Melee . | . . . Ramming 19 | . 19 . Kinetic 947 | 533 414 . Thermal 458 | . 417 41 Explosive 164 | . . 164 Electromagnetic 315 | . 315 . Impact . | . . . Slashing . | . . . Piercing . | . . . Highest Corruption . | . . . Average Corruption . | . . . Corruption Purged . | . . . Corruption Blocked . | . . . Overload Shots . | . . . Overflow Damage 63 | . 56 7 Projectiles . | . . . Explosions 63 | . 56 7 Melee . | . . . Knockbacks . | . . . Impact . | . . . Kinetic . | . . . Secondary . | . . . Self-Inflicted Damage 266 | . 194 72 Shots 5 | . 3 2 Rammed 2 | . 2 . Targets Rammed 2 | . 2 . Kicked . | . . . Crushed . | . . . Highest Temperature 132 | . 132 36 Average Temperature 35 | . 35 19 Received Heat Transfer 141 | . 126 15 Siege Activations . | . . . Martial Activations . | . . . Shielding Activations . | . . . Robots Disrupted . | . . . Combat Hostiles . | . . . Robots Corrupted . | . . . Combat Hostiles . | . . . Parts Fried 1 | . 1 . Impact Corruptions . | . . . Robots Melted . | . . . Combat Hostiles . | . . . Parts Melted . | . . . Heat Transferred 620 | . 546 74 Parts Sabotaged . | . . . Parts Stolen . | . . . Parts Stripped . | . . . Power Chain Reactions 2 | . 2 . Alert | -11 -10 -10 ------- Run | Yrd Mat Min Maximum Alert Level 1 | . 1 . Low Security (%) 56 | 100 30 100 Level 1 43 | . 69 . Level 2 . | . . . Level 3 . | . . . Level 4 . | . . . Level 5 . | . . . High Security . | . . . Max Security . | . . . Peak Influence 272 | 10 272 84 Initial 84 | . . 84 Average 109 | 1 171 81 Influence Increases 544 | 45 490 9 Destroy 0b10 Robot/C 260 | . 260 . Destroy 0b10 Robot/NC 90 | 45 45 . Destroy Leader 64 | . 64 . Successful Hack 13 | . 13 . Disable Machine 60 | . 60 . Destroy Structure 42 | . 33 9 Lose Combat Pursuer 15 | . 15 . Influence Decreases 471 | 45 273 153 Entered New Map 133 | . . 133 Time Decay 288 | 45 243 . Lost Part 50 | . 30 20 Squads Dispatched 4 | . 4 . Investigation 1 | . 1 . Extermination . | . . . Reinforcement 3 | . 3 . Assault . | . . . Garrison . | . . . Intercept . | . . . Searches Triggered . | . . . Construction Impeded . | . . . Haulers Reinforced . | . . . Active Scanning Responses . | . . . Cargo Convoy Interrupts . | . . . Stealth | -11 -10 -10 --------- Run | Yrd Mat Min Distress Signals . | . . . Communications Jammed . | . . . Distress Signals . | . . . Times Spotted 23 | . 21 2 Peak Tracking Total 5 | . 5 2 Tactical Retreats 1 | . 1 . Traps | -11 -10 -10 ------- Run | Yrd Mat Min Traps Triggered 3 | . 3 . Indirectly . | . . . Trap Hack Attempts . | . . . Triggered . | . . . Disarmed . | . . . Reprogrammed . | . . . Reused . | . . . Traps Extracted . | . . . Installed . | . . . Triggered . | . . . Machines | -11 -10 -10 ---------- Run | Yrd Mat Min Machines Disabled 4 | . 4 . Max in Single Turn 2 | . 2 . Machines Repaired . | . . . Machines Dismantled . | . . . Machines Sabotaged . | . . . Overloaded Fab Kills . | . . . Hacking | -11 -10 -10 --------- Run | Yrd Mat Min Machines Accessed 2 | . 2 . Terminals 2 | . 2 . Fabricators . | . . . Repair Stations . | . . . Recycling Units . | . . . Scanalyzers . | . . . Garrison Access . | . . . Total Hacks 6 | . 6 . Successful 2 | . 2 . Failed 4 | . 4 . Catastrophic . | . . . Database Lockouts . | . . . Manual 7 | . 7 . Terminals 6 | . 6 . Fabricators . | . . . Repair Stations . | . . . Recycling Units . | . . . Scanalyzers . | . . . Garrison Access . | . . . Terminal Hacks 2 | . 2 . Robot Analysis 1 | . 1 . Recycling Unit Index 1 | . 1 . Fabricator Hacks . | . . . Repair Station Hacks . | . . . Recycling Unit Hacks . | . . . Scanalyzer . | . . . Garrison Access Hacks . | . . . Unauthorized Hacks . | . . . Terminals . | . . . Fabricators . | . . . Repair Stations . | . . . Recycling Units . | . . . Scanalyzers . | . . . Garrison Access . | . . . Data Cores Recovered . | . . . Used . | . . . Hacking Detections 2 | . 2 . Full Trace Events 1 | . 1 . Feedback Events . | . . . Feedback Blocked . | . . . Robot Schematics Acquired . | . . . Robots Built . | . . . Authchips . | . . . Time . | . . . Total Robot Build Rating . | . . . Part Schematics Acquired . | . . . Parts Built . | . . . Authchips . | . . . Time . | . . . Total Part Build Rating . | . . . Part Studies Acquired . | . . . Parts Repaired . | . . . Time . | . . . Parts Recycled . | . . . Recycled Matter . | . . . Retrieved Matter . | . . . Retrieved Components . | . . . Parts Scanalyzed . | . . . Part Schematics Acquired . | . . . Parts Damaged . | . . . Bothacking | -11 -10 -10 ------------ Run | Yrd Mat Min Used RIF Installer . | . . . Robots Hacked . | . . . Non-combat . | . . . Combat . | . . . Robot Hacks Applied . | . . . Relay Couplers Released . | . . . Fabnet Peak Effective % . | . . . Robots Rewired . | . . . Allies Hacked . | . . . Hacks Repelled . | . . . Allies | -11 -10 -10 -------- Run | Yrd Mat Min Total Allies . | . . . Largest Group . | . . . Highest-Rated Group . | . . . Highest-Rated Ally . | . . . Total Orders . | . . . Ally Attacks . | . . . Total Damage . | . . . Kills . | . . . Allies Corrupted . | . . . Allies Melted . | . . . Intel | -11 -10 -10 ------- Run | Yrd Mat Min Active Infowar (turns) . | . . . Robot Analysis Total 1 | . 1 . Derelict Logs Recovered . | . . . Drone Launches . | . . . Drone Recoveries . | . . . Exploration | -11 -10 -10 ------------- Run | Yrd Mat Min Turns Passed 941 | 340 596 5 Spaces Moved 676 | 269 407 . Core 4 | 4 . . Treads . | . . . Legs . | . . . Wheels 672 | 265 407 . Hover . | . . . Flight . | . . . Fastest Speed 50 | 50 80 . Average Speed 87 | 79 93 . Slowest Speed 140 | 80 140 . Overloaded Moves . | . . . Propulsion Burnouts . | . . . Robots Hopped . | . . . Potential Cave-ins . | . . . Cave-ins Triggered . | . . . Exploration Rate (%) 24 | 7 64 3 Regions Visited 2 Branch Regions 1 Pre-discovered Areas . | . . . Known Exits Taken . | . . . Unknown Exits Taken 2 | 1 1 . Scrap Searched . | . . . Spaces Dug . | . . . Terrain Destroyed 40 | . 31 9 Melee . | . . . Projectile . | . . . AOE 40 | . 31 9 Terrain Rammed . | . . . Walls Destroyed . | . . . Machines Disabled . | . . . Actions | -11 -10 -10 --------- Run | Yrd Mat Min Total 838 | 319 516 3 Wait 31 | . 31 . Move 674 | 268 406 . Hop . | . . . Pick Up 10 | 4 6 . Fast Attach 9 | 6 3 . Attach 3 | . 3 . Detach 1 | . 1 . Swap 5 | 1 3 1 Drop 2 | . 2 . Fire 101 | 40 59 2 Melee . | . . . Ram 2 | . 2 . Kick . | . . . Crush . | . . . Escape Stasis . | . . . Rewire . | . . . Trap . | . . . Miscellaneous . | . . . Route ------- -11/Scrapyard -10/Materials (discovered 2 exits: [*Min] / [*Sub]) -10/Mines History --------- Turn | Location | Event 7 | -11/Scrapyard | Discovered new exit (range 15) 341 | -11/Scrapyard | Entered Materials 342 | -10/Materials | Build established: Mutant 526 | -10/Materials | Core integrity fell below 50% 550 | -10/Materials | Destroyed 8 combat bots 570 | -10/Materials | Discovered new exit (range 12) 735 | -10/Materials | Core integrity fell below 20% 912 | -10/Materials | Discovered new exit (range 11) 937 | -10/Materials | Entered Mines 942 | -10/Mines | Destroyed self with Grenade Launcher Last Messages --------------- 00876_ Acquired 9 matter. 00877_ K-01 Serf collects debris. 00886_ K-01 Serf destroyed. 00887_ K-01 Serf collects debris. 00905_ A-02 Transporter destroyed. 00911_ Acquired 16 matter. 00912_ EXIT=FOUND 00921_ Triggered Alarm Trap. 00921_ An alarm sounds. 00921_ ALERT: Alarm triggered, dispatching investigation squad. 00922_ K-01 Serf collects debris. 00922_ Extracted 2 energy. 00923_ Acquired 2 matter. 00925_ Extracted 2 energy. 00925_ K-01 Serf collects debris. LOCATION=UNKNOWN GOAL=ESCAPE 00939_ Lgt. Nuclear Core destroyed. 00939_ Destroyed Lgt. Nuclear Core. 00941_ Wheel destroyed. Map ----- +----------------------------------------------------+ | | | | | | | | | | | ?????????????????????????????????????????????? | | ?????????????????????????????????????????????? | | ?????????????????????????????????????????????? | | ?????????????????????????????????????????????? | | ?????????????????????????????????????????????? | | ?????????????????????????????????????????????? | | ?????????????????????????????????????????????? | | ?????????????????????????????????????????????? | | ?????????????????????????????????????????????? | | ?????????????????????????????????????????????? | | ?????????????????????????????????????????????? | | ?????????????????????????????????????????????? | | ?????????????????????????????????????????????? | | ?????????????????????????????????????????????? | | ?????????????????????????????????????????????? | | ?????????????????????????????????????????????? | | ?????????????????????????????????????????????? | | ?????????????????????????????????????????????? | | ????????????????????# ######?????????????????? | | ????????????????????# ###???????????????? | | ????????????????????# @ #???????????????? | | ????????????????????# g #???????????????? | | ????????????????????# g #???????????????? | | ????????????????????## #??????????????? | | ?????????????????????## #??????????????? | | ??????????????????????## #####??????????????? | | ???????????????????????# #??????????????????? | | ???????????????????????# #??????????????????? | | ???????????????????????# #??????????????????? | | ???????????????????????# ???????????????????? | | ??????????????????????? ???????????????????? | | ???????????????????????# ???????????????????? | | ???????????????????????# ???????????????????? | | ???????????????????????? ???????????????????? | | ???????????????????????? ???????????????????? | | ???????????????????????? ???????????????????? | | ?????????????????????????????????????????????? | | ?????????????????????????????????????????????? | | ?????????????????????????????????????????????? | | ?????????????????????????????????????????????? | | ?????????????????????????????????????????????? | | ?????????????????????????????????????????????? | | ?????????????????????????????????????????????? | | ?????????????????????????????????????????????? | | ?????????????????????????????????????????????? | +----------------------------------------------------+ Best States ------------- Heat Dissipation 25 Energy Generation 14 Energy Capacity 250 Matter Stores 300 Matter Capacity 300 Sight Range 16 Terrain Scan Density 10 Evasion (%) 44 Item Schematics ----------------- None Robot Schematics ------------------ None Fabricated ------------ Nothing Repaired ---------- Nothing Studied --------- None Alien Tech Used ----------------- None Achievements -------------- None Challenges ------------ None Game ------ Seed HybridNeutrinoArchive Manual? 0 Play Time 00:07:16 Cumulative 73.0 hours Start 2026.02.15 @ 23:41:33 End 2026.02.15 @ 23:48:44 Sessions 1 Manual Loads 0 Difficulty Rogue Special Mode None Game No. 154 Rogue 154 Adventurer 0 Explorer 0 Win Type - Total 1 Types 1/0/0/0/0/0/0/0/0/0 Lore% 48 Gallery% 36 Achievement% 35 Wizard Run 0 Options --------- Layout 0 ASCII 0 Keyboard 1 Movement Arrows Keybinds 0 Fullscreen 1 Font 18/Smallcaps Map View 38x25 Zoom Use 90% Tactical HUD 1 Map Filters NONE Filters NONE Steam 1 RUN: 39202431-6db0-413c-a78b-34522d3d1cf4